[Event "SWE-ch Juniors 2018"]
[Site "Ronneby"]
[Date "2018.07.01"]
[Round "2"]
[White "Emmoth, Alfons"]
[Black "Sorensen, Hampus"]
[Result "1/2-1/2"]
[ECO "D45"]
[WhiteElo "2176"]
[BlackElo "2154"]
[Annotator "ChessBase"]
[PlyCount "36"]
[EventDate "2018.06.30"]
[EventType "tourn"]
[EventCountry "SWE"]
[SourceTitle "playchess.com"]
[Source "ChessBase"]
[SourceQuality "1"]
[TimeControl "40/5400+30:1800+30"]

1. d4 {[%emt 0:00:00]} d5 {[%emt 0:00:00]} 2. c4 {[%emt 0:00:00]} c6 {[%emt 0:00:00]} 3. e3 {[%emt 0:00:00]} Nf6 {[%emt 0:00:25]} 4. Nc3 {[%emt 0:00:08]} e6 {[%emt 0:00:30]} 5. Nf3 {[%emt 0:00:08]} a6 {[%emt 0:00:13]} 6. Qc2 {[%emt 0:01:15]} c5 {[%emt 0:00:32]} 7. cxd5 {[%emt 0:05:44]} exd5 {[%emt 0:01:34]} 8. Be2 {[%emt 0:02:56]} Nc6 {[%emt 0:02:02]} 9. a3 {[%emt 0:11:07]} cxd4 {[%emt 0:11:59]} 10. Nxd4 {[%emt 0:04:18]} Nxd4 {[%emt 0:11:17]} 11. exd4 {[%emt 0:00:12]} Be7 {[%emt 0:00:21]} 12. O-O {[%emt 0:02:37]} O-O {[%emt 0:00:26]} 13. Bf3 {[%emt 0:05:45]} Be6 {[%emt 0:03:49]} 14. Qb3 {[%emt 0:02:56]} Qd7 {[%emt 0:05:16]} 15. Bf4 {[%emt 0:04:22]} b5 {[%emt 0:03:22]} 16. Rac1 {[%emt 0:04:28]} Rac8 {[%emt 0:02:42]} 17. Rfd1 {[%emt 0:07:28]} Rc6 {[%emt 0:04:41]} 18. Ne2 {[%emt 0:05:46]} Rfc8 {[%emt 0:02:33]} 1/2-1/2

[Event "SWE-ch Juniors 2018"]
[Site "Ronneby"]
[Date "2018.07.01"]
[Round "2"]
[White "Berglind, Axel"]
[Black "Crevatin, Leo"]
[Result "0-1"]
[ECO "D45"]
[WhiteElo "2096"]
[BlackElo "2224"]
[Annotator "NA"]
[PlyCount "94"]
[EventDate "2018.06.30"]
[EventType "tourn"]
[EventCountry "SWE"]
[SourceTitle "playchess.com"]
[Source "ChessBase"]
[SourceQuality "1"]
[TimeControl "40/5400+30:1800+30"]

1. d4 {[%emt 0:00:00] Sasikiran,K} d5 {[%emt 0:03:26]} 2. Nf3 {[%emt 0:00:00]} Nf6 {[%emt 0:00:07]} 3. c4 {[%emt 0:00:00]} c6 {[%emt 0:00:04]} 4. Nc3 {[%emt 0:05:07]} e6 {[%emt 0:00:14]} 5. e3 {[%emt 0:00:08]} Nbd7 {[%emt 0:00:05]} 6. Qc2 {[%emt 0:00:56]} Bd6 {[%emt 0:00:08]} 7. Bd3 {[%emt 0:04:33]} dxc4 {[%emt 0:00:34]} 8. Bxc4 {[%emt 0:00:05]} O-O {[%emt 0:00:29]} 9. O-O {[%emt 0:00:18]} b5 {[%emt 0:00:03]} 10. Be2 {[%emt 0:00:03]} Bb7 {[%emt 0:00:54]} 11. Rd1 {[%emt 0:05:33]} Qc7 {[%emt 0:02:18]} 12. a3 {[%emt 0:03:23] LiveBook: 18 Games D46: Semi-Slav: 5 e3 Nbd7 6 Bd3, Black avoids the Meran} a5 {[%emt 0:05:31]} 13. e4 {[%emt 0:02:01]} e5 {[%emt 0:02:22] [#]} 14. Be3 $146 {[%emt 0:01:59]} ({Predecessor:} 14. dxe5 Nxe5 15. Nd4 Neg4 16. Bxg4 Bxh2+ 17. Kf1 Nxg4 18. g3 f5 19. Bf4 {1-0 (38) Sasikiran,K (2669)-Robson,R (2656) Khanty-Mansiysk 2017 CBM 179 [Sasikiran,K]}) 14... Ng4 {[%emt 0:12:10]} 15. Rac1 {[%emt 0:08:57]} Nxe3 {[%emt 0:03:15]} 16. fxe3 {[%emt 0:00:06]} Rac8 {[%emt 0:01:51]} (16... Qb8 $11 {keeps the balance.}) 17. Qb3 $2 {[%emt 0:02:41]} (17. Qd2 $16) 17... Qb8 {[%emt 0:09:49]} 18. a4 {[%emt 0:06:17] [#]} b4 {[%emt 0:02:34]} (18... exd4 $142 $1 19. exd4 Bf4) 19. Nb1 {[%emt 0:00:11]} exd4 {[%emt 0:06:34]} 20. exd4 {[%emt 0:04:11]} Bf4 {[%emt 0:05:56]} 21. Rc2 {[%emt 0:15:13]} Nf6 $2 {[%emt 0:04:59]} (21... c5 $19 22. d5 {[#]} c4 $1 {[%mdl 512]} 23. Rxc4 Nc5 24. Rxc5 Rxc5) 22. g3 $1 {[%emt 0:06:18]} Bc7 {[%emt 0:07:51]} 23. Nbd2 {[%emt 0:04:32]} (23. e5 $5 {[%cal Re5f6]} Nd5 24. Nbd2 $11) 23... Rcd8 {[%emt 0:02:12]} 24. e5 {[%emt 0:08:05]} Nd5 {[%emt 0:02:26]} 25. Ne4 {[%emt 0:01:38]} Qa7 {[%emt 0:02:03]} 26. Qd3 $11 {[%emt 0:01:33]} Rfe8 {[%emt 0:02:43]} 27. Nc5 {[%emt 0:03:22]} Bc8 {[%emt 0:01:45]} 28. Ng5 {[%emt 0:03:09]} g6 {[%emt 0:00:46]} 29. Rf1 {[%emt 0:00:02]} Re7 {[%emt 0:02:37]} 30. g4 {[%emt 0:08:18]} h6 {[%emt 0:05:11]} 31. Nge4 {[%emt 0:03:58]} Nb6 {[%emt 0:04:00]} 32. Nf6+ {[%emt 0:01:17]} Kg7 {[%emt 0:00:06]} 33. Qe4 {[%emt 0:01:10]} Nxa4 {[%emt 0:00:59]} 34. Qxc6 {[%emt 0:01:06]} Nxc5 {[%emt 0:00:48]} 35. Rxc5 {[%emt 0:00:27]} Bb6 {[%emt 0:01:11]} 36. Nd5 {[%emt 0:00:46]} Re6 {[%emt 0:01:20]} 37. Nxb6 {[%emt 0:00:32]} Rxc6 {[%emt 0:00:27]} 38. Rxc6 {[%emt 0:00:01]} Be6 {[%emt 0:02:09]} 39. Rd1 {[%emt 0:00:59]} Bd7 {[%emt 0:01:23]} 40. Rd6 {[%emt 0:00:22]} Bxg4 {[%emt 0:01:00]} 41. Bxg4 {[%emt 0:30:14]} Rxd6 {[%emt 0:30:04]} 42. Nc8 {[%emt 0:00:11]} Qxd4+ {[%emt 0:00:25]} 43. Rxd4 {[%emt 0:00:42]} Rxd4 {[%emt 0:00:02]} 44. Bf3 {[%emt 0:00:00]} a4 {[%emt 0:00:00]} 45. Nb6 {[%emt 0:00:00]} a3 {[%emt 0:00:00]} 46. bxa3 {[%emt 0:00:00]} bxa3 {[%emt 0:00:00]} 47. Bd5 {[%emt 0:00:00]} Rxd5 {[%emt 0:00:00]} 0-1

[Event "SWE-ch Juniors 2018"]
[Site "Ronneby"]
[Date "2018.07.03"]
[Round "4"]
[White "Pantzar, Milton"]
[Black "Emmoth, Alfons"]
[Result "1-0"]
[ECO "E71"]
[WhiteElo "2333"]
[BlackElo "2176"]
[Annotator "NA"]
[PlyCount "49"]
[EventDate "2018.06.30"]
[EventType "tourn"]
[EventCountry "SWE"]
[SourceTitle "playchess.com"]
[Source "ChessBase"]
[SourceQuality "1"]
[TimeControl "40/5400+30:1800+30"]

1. c4 {[%emt 0:00:00]} Nf6 {[%emt 0:00:00]} 2. Nc3 {[%emt 0:00:00]} g6 {[%emt 0:00:00]} 3. d4 {[%emt 0:00:00]} Bg7 {[%emt 0:00:00]} 4. e4 {[%emt 0:00:00]} d6 {[%emt 0:00:00]} 5. h3 {[%emt 0:00:00]} O-O {[%emt 0:00:14]} 6. Be3 {[%emt 0:00:06]} e5 {[%emt 0:02:18]} 7. d5 {[%emt 0:00:16]} c5 {[%emt 0:08:17]} 8. g4 {[%emt 0:04:44]} Ne8 {[%emt 0:05:39]} 9. Nge2 {[%emt 0:03:06]} f5 {[%emt 0:05:44]} (9... Na6 $16 {keeps fighting.}) 10. gxf5 {[%emt 0:00:55]} gxf5 {[%emt 0:00:14]} 11. exf5 {[%emt 0:00:20]} Bxf5 $18 {[%emt 0:03:54]} (11... e4 $16) 12. Ng3 {[%emt 0:01:11]} Qd7 {[%emt 0:10:28]} 13. Nxf5 {[%emt 0:13:52]} Qxf5 {[%emt 0:01:28]} 14. Rg1 {[%emt 0:01:27]} Na6 {[%emt 0:08:07]} 15. Bd3 {[%emt 0:09:54]} Qxh3 {[%emt 0:08:17]} 16. a3 {[%emt 0:02:03]} Nac7 {[%emt 0:06:44]} 17. Qc2 {[%emt 0:02:52]} Nf6 {[%emt 0:02:51]} 18. O-O-O {[%emt 0:02:27]} Qd7 {[%emt 0:03:42]} 19. Rh1 {[%emt 0:03:28]} Rf7 {[%emt 0:03:37]} 20. Bf5 {[%emt 0:04:52]} Qe7 {[%emt 0:02:04]} 21. Rdg1 {[%emt 0:10:04]} Kf8 {[%emt 0:01:27]} 22. Bxh7 {[%emt 0:00:49]} Nxh7 {[%emt 0:00:55]} 23. Rxh7 {[%emt 0:00:29]} Bf6 {[%emt 0:02:32]} 24. Qg6 {[%emt 0:01:07]} Ke8 {[%emt 0:03:05]} 25. Ne4 {[%emt 0:03:00]} 1-0

[Event "SWE-ch Juniors 2018"]
[Site "Ronneby"]
[Date "2018.07.03"]
[Round "4"]
[White "Kucuksari, Kaan"]
[Black "Forsberg, Andre"]
[Result "1-0"]
[ECO "E81"]
[WhiteElo "2296"]
[BlackElo "2025"]
[Annotator "NA"]
[PlyCount "61"]
[EventDate "2018.06.30"]
[EventType "tourn"]
[EventCountry "SWE"]
[SourceTitle "playchess.com"]
[Source "ChessBase"]
[SourceQuality "1"]
[TimeControl "40/5400+30:1800+30"]

1. d4 {[%emt 0:00:00]} Nf6 {[%emt 0:00:00]} 2. Nf3 {[%emt 0:00:00]} e6 {[%emt 0:00:00]} 3. Nbd2 {[%emt 0:00:00]} c5 {[%emt 0:02:03]} 4. e3 {[%emt 0:00:00]} d5 {[%emt 0:02:17]} 5. c3 {[%emt 0:00:07]} Nc6 {[%emt 0:00:26]} 6. Bd3 {[%emt 0:00:07]} Be7 {[%emt 0:00:26]} 7. O-O {[%emt 0:00:08]} O-O {[%emt 0:00:13]} 8. dxc5 {[%emt 0:00:05]} Bxc5 {[%emt 0:00:21]} 9. e4 {[%emt 0:00:05]} h6 {[%emt 0:06:16]} 10. e5 {[%emt 0:07:00]} Ng4 {[%emt 0:11:15]} 11. Nb3 {[%emt 0:11:15]} Bb6 {[%emt 0:00:23]} 12. Bf4 {[%emt 0:00:05]} Bc7 {[%emt 0:01:03]} 13. h3 {[%emt 0:05:12]} Ngxe5 {[%emt 0:00:57]} 14. Nxe5 {[%emt 0:00:37]} Bxe5 $15 {[%emt 0:00:21]} 15. Bxe5 {[%emt 0:01:17]} Nxe5 {[%emt 0:00:07]} 16. Bc2 {[%emt 0:00:34]} b6 {[%emt 0:01:49]} 17. Nd4 {[%emt 0:00:22]} Ba6 {[%emt 0:01:06]} 18. Re1 {[%emt 0:00:27]} Qc7 {[%emt 0:00:19]} 19. Qh5 {[%emt 0:00:57]} Nd7 {[%emt 0:06:14]} 20. Re3 {[%emt 0:00:50]} Qf4 {[%emt 0:10:22]} 21. Rae1 {[%emt 0:00:51]} Nf6 {[%emt 0:00:20]} 22. Qd1 {[%emt 0:00:10]} Rac8 {[%emt 0:07:09]} 23. Bb1 {[%emt 0:06:19]} Rfd8 {[%emt 0:01:31]} 24. Qa4 {[%emt 0:05:35]} Bb7 {[%emt 0:24:05]} 25. Qxa7 {[%emt 0:00:08]} Qc7 {[%emt 0:00:11]} 26. Qa4 {[%emt 0:00:24]} Ne4 {[%emt 0:00:54]} 27. Qd1 {[%emt 0:02:49]} e5 {[%emt 0:10:53]} 28. Nf5 {[%emt 0:02:08]} d4 {[%emt 0:01:35]} 29. cxd4 {[%emt 0:05:21]} exd4 {[%emt 0:00:06]} 30. Nxd4 {[%emt 0:22:54]} Qc4 {[%emt 0:09:27]} 31. Bxe4 1-0

[Event "SWE-ch Juniors 2018"]
[Site "Ronneby"]
[Date "2018.07.03"]
[Round "4"]
[White "Carlsson, Ludvig"]
[Black "Storme, Isak"]
[Result "0-1"]
[ECO "C58"]
[WhiteElo "2169"]
[BlackElo "2277"]
[Annotator "NA"]
[PlyCount "66"]
[EventDate "2018.06.30"]
[EventType "tourn"]
[EventCountry "SWE"]
[SourceTitle "playchess.com"]
[Source "ChessBase"]
[SourceQuality "1"]
[TimeControl "40/5400+30:1800+30"]

1. e4 {[%emt 0:00:05]} e5 {[%emt 0:00:55]} 2. Nf3 {[%emt 0:01:47]} Nc6 {[%emt 0:00:07]} 3. Bc4 {[%emt 0:00:08]} Nf6 {[%emt 0:00:10]} 4. Ng5 {[%emt 0:00:07]} d5 {[%emt 0:00:25]} 5. exd5 {[%emt 0:00:06]} Na5 {[%emt 0:00:08]} 6. Bb5+ {[%emt 0:00:05]} c6 {[%emt 0:00:09]} 7. dxc6 {[%emt 0:00:04]} bxc6 {[%emt 0:00:06]} 8. Qf3 {[%emt 0:00:06]} Be7 {[%emt 0:00:36]} 9. O-O {[%emt 0:04:52]} Bg4 {[%emt 0:23:48]} 10. Bxc6+ {[%emt 0:00:58]} Kf8 $11 {[%emt 0:00:37]} 11. Bxa8 {[%emt 0:01:42]} Bxf3 {[%emt 0:00:06]} 12. Bxf3 {[%emt 0:00:07]} Nd7 {[%emt 0:18:59]} 13. Ne4 {[%emt 0:02:02]} f5 {[%emt 0:03:01]} 14. Nec3 {[%emt 0:01:30]} e4 {[%emt 0:00:52]} 15. Be2 {[%emt 0:00:54]} Nc6 {[%emt 0:07:20]} 16. Bd1 {[%emt 0:12:52]} Nde5 {[%emt 0:09:06]} 17. b3 {[%emt 0:10:25]} Nd4 {[%emt 0:06:59]} 18. d3 {[%emt 0:02:41]} exd3 {[%emt 0:15:17]} 19. cxd3 {[%emt 0:00:11]} Nxd3 {[%emt 0:01:02]} 20. Nd2 {[%emt 0:05:26]} Bb4 {[%emt 0:02:20]} 21. Ne2 {[%emt 0:02:27]} Nxe2+ {[%emt 0:00:35]} 22. Bxe2 {[%emt 0:00:29]} Qd4 {[%emt 0:04:40]} 23. Bxd3 {[%emt 0:00:58]} Qxa1 {[%emt 0:00:33]} 24. Ba3 {[%emt 0:01:32]} Qd4 {[%emt 0:00:52]} 25. Nf3 {[%emt 0:00:08]} Qd6 {[%emt 0:01:11]} 26. Bxb4 {[%emt 0:00:40]} Qxb4 {[%emt 0:00:04]} 27. Rc1 {[%emt 0:01:39]} g6 {[%emt 0:00:34]} 28. Rc7 {[%emt 0:00:48]} Qd6 {[%emt 0:00:41]} 29. Ng5 {[%emt 0:00:14]} h6 {[%emt 0:01:29]} 30. Rc8+ {[%emt 0:05:53]} Kg7 {[%emt 0:00:10]} 31. Rc7+ {[%emt 0:00:02]} Kf6 {[%emt 0:00:26]} 32. Rf7+ {[%emt 0:00:10]} Kxg5 {[%emt 0:00:47]} 33. h4+ {[%emt 0:00:04]} Kf4 {[%emt 0:00:17]} 0-1

[Event "SWE-ch Juniors 2018"]
[Site "Ronneby"]
[Date "2018.07.03"]
[Round "4"]
[White "Sundin, Emanuel"]
[Black "Crevatin, Leo"]
[Result "1-0"]
[ECO "B18"]
[WhiteElo "2152"]
[BlackElo "2224"]
[Annotator "NA"]
[PlyCount "103"]
[EventDate "2018.06.30"]
[EventType "tourn"]
[EventCountry "SWE"]
[SourceTitle "playchess.com"]
[Source "ChessBase"]
[SourceQuality "1"]
[TimeControl "40/5400+30:1800+30"]

1. e4 {[%emt 0:00:03]} c6 {[%emt 0:00:00]} 2. d4 {[%emt 0:02:37]} d5 {[%emt 0:00:06]} 3. Nd2 {[%emt 0:03:31]} dxe4 {[%emt 0:00:13]} 4. Nxe4 {[%emt 0:00:08]} Bf5 {[%emt 0:00:03]} 5. Ng3 {[%emt 0:02:27]} Bg6 {[%emt 0:00:04]} 6. Nh3 {[%emt 0:07:36]} e6 {[%emt 0:01:34]} 7. Nf4 {[%emt 0:02:07]} Bd6 {[%emt 0:03:36]} 8. h4 {[%emt 0:05:43]} Qc7 {[%emt 0:03:29]} 9. Nxg6 {[%emt 0:00:40]} hxg6 {[%emt 0:00:12]} 10. Ne4 {[%emt 0:00:09]} Bf4 {[%emt 0:03:02]} 11. Bxf4 {[%emt 0:01:54]} Qxf4 {[%emt 0:00:38]} 12. Ng5 {[%emt 0:00:40]} Nd7 {[%emt 0:06:58]} 13. g3 {[%emt 0:01:07]} Qd6 {[%emt 0:02:30]} 14. Bg2 {[%emt 0:08:03]} Nh6 {[%emt 0:07:39]} 15. Qd2 {[%emt 0:07:31]} O-O-O {[%emt 0:01:48]} 16. O-O-O {[%emt 0:00:58]} f6 {[%emt 0:08:00]} 17. Ne4 {[%emt 0:09:42]} Qe7 {[%emt 0:01:10]} 18. Rhe1 {[%emt 0:06:15]} Rhe8 {[%emt 0:03:02]} 19. Re3 {[%emt 0:07:31]} Nf5 {[%emt 0:01:45]} 20. Ra3 {[%emt 0:00:46]} a6 {[%emt 0:05:12]} 21. Qc3 {[%emt 0:07:02]} Nb6 {[%emt 0:06:32]} 22. Nc5 {[%emt 0:02:19]} e5 {[%emt 0:04:15]} 23. d5 {[%emt 0:01:48]} Nd4 {[%emt 0:00:47]} 24. Qb4 {[%emt 0:06:49]} Nxd5 {[%emt 0:02:52]} 25. Qa5 {[%emt 0:08:14]} Nb5 {[%emt 0:02:33]} 26. Bxd5 {[%emt 0:02:13]} Rxd5 {[%emt 0:03:22]} 27. Rxd5 {[%emt 0:01:01]} cxd5 {[%emt 0:00:05]} 28. Rd3 {[%emt 0:01:45]} d4 {[%emt 0:01:15]} 29. Na4 {[%emt 0:00:29]} Kb8 {[%emt 0:00:50]} 30. Qb6 {[%emt 0:02:10]} Rc8 {[%emt 0:01:13]} 31. Kb1 {[%emt 0:01:15]} Qb4 {[%emt 0:00:22]} 32. b3 {[%emt 0:00:45]} Nc3+ {[%emt 0:01:47]} 33. Rxc3 {[%emt 0:00:24]} Qxb6 {[%emt 0:03:02]} 34. Rxc8+ {[%emt 0:00:29]} Kxc8 {[%emt 0:00:01]} 35. Nxb6+ {[%emt 0:00:08]} Kc7 {[%emt 0:00:01]} 36. Nc4 {[%emt 0:00:13]} b5 {[%emt 0:00:11]} 37. Nd2 {[%emt 0:00:29]} Kd6 {[%emt 0:00:02]} 38. c4 {[%emt 0:01:23]} dxc3 {[%emt 0:00:04]} 39. Ne4+ {[%emt 0:00:04]} Kd5 {[%emt 0:00:19]} 40. Nxc3+ {[%emt 0:00:05]} Kd4 {[%emt 0:00:18]} 41. Kc2 {[%emt 0:30:11]} b4 {[%emt 0:30:34]} 42. Na4 {[%emt 0:00:00]} Ke4 {[%emt 0:00:00]} 43. Kd2 {[%emt 0:00:00]} Kf3 {[%emt 0:00:00]} 44. Ke1 {[%emt 0:00:00]} e4 {[%emt 0:00:00]} 45. Nc5 {[%emt 0:00:00]} e3 {[%emt 0:00:00]} 46. fxe3 {[%emt 0:00:00]} Kxg3 {[%emt 0:00:00]} 47. Nxa6 {[%emt 0:00:00]} Kxh4 {[%emt 0:00:00]} 48. Nxb4 {[%emt 0:00:00]} Kh3 {[%emt 0:00:00]} 49. a4 {[%emt 0:00:00]} g5 {[%emt 0:00:00]} 50. a5 {[%emt 0:00:00]} g4 {[%emt 0:00:00]} 51. Nd3 {[%emt 0:00:00]} g3 {[%emt 0:00:00]} 52. Kf1 {[%emt 0:00:00]} 1-0

[Event "SWE-ch Juniors 2018"]
[Site "Ronneby"]
[Date "2018.07.03"]
[Round "4"]
[White "Berglind, Axel"]
[Black "Sorensen, Hampus"]
[Result "1/2-1/2"]
[ECO "D11"]
[WhiteElo "2096"]
[BlackElo "2204"]
[Annotator "NA"]
[PlyCount "46"]
[EventDate "2018.06.30"]
[EventType "tourn"]
[EventCountry "SWE"]
[SourceTitle "playchess.com"]
[Source "ChessBase"]
[SourceQuality "1"]
[TimeControl "40/5400+30:1800+30"]

1. d4 {[%emt 0:00:00]} d5 {[%emt 0:00:00]} 2. Nf3 {[%emt 0:00:00]} Nf6 {[%emt 0:00:20]} 3. g3 {[%emt 0:00:00]} c6 {[%emt 0:01:59]} 4. Bg2 {[%emt 0:00:00]} Bf5 {[%emt 0:00:25]} 5. c4 {[%emt 0:00:00]} e6 {[%emt 0:01:08]} 6. Qb3 {[%emt 0:00:07]} Qb6 {[%emt 0:09:55]} 7. c5 {[%emt 0:00:08]} Qxb3 {[%emt 0:02:43]} 8. axb3 {[%emt 0:00:05]} Nbd7 {[%emt 0:00:23]} 9. Nc3 {[%emt 0:00:06]} a6 {[%emt 0:00:28]} 10. b4 {[%emt 0:00:05]} Rd8 {[%emt 0:01:50]} 11. Nd2 {[%emt 0:01:31]} Bc2 {[%emt 0:09:07]} 12. e4 {[%emt 0:07:34]} Nxe4 {[%emt 0:03:35]} 13. Ncxe4 {[%emt 0:00:39]} Bxe4 {[%emt 0:00:53]} 14. Bxe4 {[%emt 0:11:19]} dxe4 {[%emt 0:00:08]} 15. Nxe4 {[%emt 0:00:05]} Nf6 {[%emt 0:00:49]} 16. Nxf6+ {[%emt 0:00:39]} gxf6 {[%emt 0:00:07]} 17. Be3 {[%emt 0:00:03]} f5 {[%emt 0:04:20]} 18. O-O-O {[%emt 0:00:25]} Bg7 {[%emt 0:02:09]} 19. Rhg1 {[%emt 0:08:39]} h5 {[%emt 0:03:43]} 20. h3 {[%emt 0:00:06]} Bh6 {[%emt 0:06:22]} 21. Bf4 {[%emt 0:01:56]} Ke7 {[%emt 0:03:52]} 22. Kc2 {[%emt 0:01:18]} Bxf4 {[%emt 0:05:34]} 23. gxf4 {[%emt 0:00:05]} Rdg8 {[%emt 0:07:09]} 1/2-1/2

[Event "SWE-ch Juniors 2018"]
[Site "Ronneby"]
[Date "2018.07.04"]
[Round "5"]
[White "Storme, Isak"]
[Black "Sundin, Emanuel"]
[Result "1-0"]
[ECO "E90"]
[WhiteElo "2277"]
[BlackElo "2152"]
[Annotator "NA"]
[PlyCount "49"]
[EventDate "2018.06.30"]
[EventType "tourn"]
[EventCountry "SWE"]
[SourceTitle "playchess.com"]
[Source "ChessBase"]
[SourceQuality "1"]
[TimeControl "40/5400+30:1800+30"]

1. d4 {[%emt 0:00:00]} Nf6 {[%emt 0:00:08]} 2. c4 {[%emt 0:00:00]} g6 {[%emt 0:00:57]} 3. Nc3 {[%emt 0:00:00]} Bg7 {[%emt 0:00:31]} 4. e4 {[%emt 0:00:00]} d6 {[%emt 0:00:06]} 5. Nf3 {[%emt 0:00:02]} O-O {[%emt 0:02:05]} 6. h3 {[%emt 0:00:19]} e5 {[%emt 0:01:57]} 7. d5 {[%emt 0:02:20]} Na6 {[%emt 0:02:42]} 8. Bg5 {[%emt 0:06:01]} Qe8 {[%emt 0:07:37]} 9. g4 {[%emt 0:02:07]} Nc5 {[%emt 0:03:53]} 10. Nd2 {[%emt 0:03:34]} a5 {[%emt 0:01:56]} 11. Qf3 {[%emt 0:13:19]} Nfd7 {[%emt 0:04:30]} 12. h4 {[%emt 0:02:53]} Nb6 {[%emt 0:31:17]} 13. Be2 {[%emt 0:19:03]} Nba4 {[%emt 0:05:29]} 14. Nb5 {[%emt 0:11:54]} Na6 {[%emt 0:02:12]} 15. Qa3 {[%emt 0:04:17]} N4c5 {[%emt 0:02:42]} 16. Qxa5 {[%emt 0:00:39]} Bxg4 {[%emt 0:13:05]} 17. Bxg4 {[%emt 0:02:28]} Nb4 {[%emt 0:01:06]} 18. Qxc7 {[%emt 0:02:43]} Nc2+ {[%emt 0:00:39]} 19. Ke2 {[%emt 0:00:49]} Nxa1 {[%emt 0:00:05]} 20. Rxa1 {[%emt 0:01:17]} f5 {[%emt 0:04:29]} 21. Nxd6 {[%emt 0:04:30]} Qa4 {[%emt 0:01:05]} 22. exf5 {[%emt 0:01:58]} Na6 {[%emt 0:01:10]} 23. Qe7 {[%emt 0:01:48]} Rae8 {[%emt 0:09:29]} 24. Nxe8 {[%emt 0:00:37]} Rxe8 {[%emt 0:00:01]} 25. Qxb7 {[%emt 0:00:51]} 1-0

[Event "SWE-ch Juniors 2018"]
[Site "Ronneby"]
[Date "2018.07.04"]
[Round "5"]
[White "Crevatin, Leo"]
[Black "Pantzar, Milton"]
[Result "1-0"]
[ECO "A04"]
[WhiteElo "2224"]
[BlackElo "2333"]
[Annotator "NA"]
[PlyCount "53"]
[EventDate "2018.06.30"]
[EventType "tourn"]
[EventCountry "SWE"]
[SourceTitle "playchess.com"]
[Source "ChessBase"]
[SourceQuality "1"]
[TimeControl "40/5400+30:1800+30"]

1. Nf3 {[%emt 0:00:00]} b6 {[%emt 0:00:01]} 2. e4 {[%emt 0:01:09]} Bb7 {[%emt 0:00:14]} 3. Nc3 {[%emt 0:01:07]} e6 {[%emt 0:00:58]} 4. d4 {[%emt 0:03:21]} Bb4 {[%emt 0:00:54]} 5. Bd3 {[%emt 0:01:11]} Nf6 {[%emt 0:00:35]} 6. Qe2 {[%emt 0:01:14]} d5 {[%emt 0:00:31]} 7. exd5 {[%emt 0:02:08]} Qxd5 {[%emt 0:00:22]} 8. Bd2 {[%emt 0:00:41]} Bxc3 {[%emt 0:12:33]} 9. Bxc3 {[%emt 0:01:59]} O-O {[%emt 0:00:33]} 10. a3 {[%emt 0:06:31]} Nbd7 {[%emt 0:13:05]} 11. O-O-O {[%emt 0:08:18]} Qa2 {[%emt 0:21:38]} 12. Bc4 {[%emt 0:03:46]} Qa1+ {[%emt 0:00:19]} 13. Kd2 {[%emt 0:00:04]} Ne4+ {[%emt 0:00:12]} 14. Kd3 {[%emt 0:02:40]} b5 {[%emt 0:34:35]} 15. Rxa1 {[%emt 0:00:56]} bxc4+ {[%emt 0:00:50]} 16. Ke3 {[%emt 0:00:09]} Ndf6 {[%emt 0:00:08]} 17. Qe1 {[%emt 0:08:22]} Nd5+ {[%emt 0:02:08]} 18. Ke2 {[%emt 0:04:10]} Nf4+ {[%emt 0:00:10]} 19. Kf1 {[%emt 0:00:59]} Nxg2 {[%emt 0:00:16]} 20. Kxg2 {[%emt 0:00:51]} Ng5 {[%emt 0:00:04]} 21. Qe3 {[%emt 0:00:56]} Bxf3+ {[%emt 0:00:47]} 22. Qxf3 {[%emt 0:00:05]} Nxf3 {[%emt 0:00:14]} 23. Kxf3 {[%emt 0:00:02]} Rab8 {[%emt 0:00:52]} 24. Rhe1 {[%emt 0:00:29]} Rb5 {[%emt 0:00:57]} 25. Re5 {[%emt 0:00:10]} Rfb8 {[%emt 0:00:32]} 26. Rae1 {[%emt 0:00:14]} a6 {[%emt 0:00:16]} 27. a4 {[%emt 0:01:33]} 1-0

[Event "SWE-ch Juniors 2018"]
[Site "Ronneby"]
[Date "2018.07.04"]
[Round "5"]
[White "Sorensen, Hampus"]
[Black "Carlsson, Ludvig"]
[Result "1-0"]
[ECO "A51"]
[WhiteElo "2204"]
[BlackElo "2169"]
[Annotator "NA"]
[PlyCount "41"]
[EventDate "2018.06.30"]
[EventType "tourn"]
[EventCountry "SWE"]
[SourceTitle "playchess.com"]
[Source "ChessBase"]
[SourceQuality "1"]
[TimeControl "40/5400+30:1800+30"]

1. d4 {[%emt 0:00:00]} Nf6 {[%emt 0:00:00]} 2. c4 {[%emt 0:00:00]} e5 {[%emt 0:00:00]} 3. dxe5 {[%emt 0:00:26]} Ne4 {[%emt 0:00:00]} 4. a3 {[%emt 0:00:52]} b6 {[%emt 0:01:24]} 5. Nf3 {[%emt 0:07:00]} Bb7 {[%emt 0:01:54]} 6. Nbd2 {[%emt 0:05:40]} Nc5 {[%emt 0:06:29]} 7. g3 {[%emt 0:07:16]} d6 {[%emt 0:03:22]} 8. exd6 {[%emt 0:01:31]} Bxd6 {[%emt 0:00:23]} 9. Bg2 {[%emt 0:01:21]} Qf6 {[%emt 0:00:40]} 10. O-O {[%emt 0:02:14]} Nbd7 {[%emt 0:00:06]} 11. Ra2 {[%emt 0:08:49]} h5 {[%emt 0:08:54]} 12. b4 {[%emt 0:05:24]} Ne6 {[%emt 0:00:15]} 13. Qc2 {[%emt 0:04:24]} O-O-O {[%emt 0:18:41]} 14. Ne4 {[%emt 0:03:41]} Qe7 {[%emt 0:00:19]} 15. Nxd6+ {[%emt 0:00:48]} cxd6 {[%emt 0:00:13]} 16. h4 {[%emt 0:03:24]} Rdg8 {[%emt 0:01:58]} 17. Rd1 {[%emt 0:05:56]} f6 {[%emt 0:02:58]} 18. Nd4 {[%emt 0:02:09]} Bxg2 {[%emt 0:01:13]} 19. Nf5 {[%emt 0:02:32]} Qf8 {[%emt 0:00:41]} 20. Kxg2 {[%emt 0:00:43]} g5 {[%emt 0:00:34]} 21. Qe4 {[%emt 0:02:40]} 1-0